bitfinex/quotes_BTCUSD_20250324
["timestamp","ask_amount","ask_price","bid_price","bid_amount"]
[1742794874442,0.00240773,87089.0,87088.0,1.24919102]
[1742794874864,0.00140773,87089.0,87088.0,1.24919102]
[1742794875677,0.00040773,87089.0,87088.0,1.24919102]
[1742794877255,0.00140773,87089.0,87088.0,1.24919102]
[1742794878012,0.00140773,87089.0,87088.0,1.23465017]
[1742794878842,0.00140773,87089.0,87088.0,1.24919102]
[1742794882801,0.00140773,87089.0,87088.0,1.25419102]
[1742794888736,0.00140773,87089.0,87088.0,1.66799102]
[1742794891404,0.00140773,87089.0,87088.0,1.66833002]
[1742794894546,0.00140773,87089.0,87088.0,1.53121002]
[1742794894879,0.00140773,87089.0,87088.0,1.66513002]
[1742794895842,0.0792,87110.0,87109.0,0.229597]
[1742794896047,0.07924209,87110.0,87109.0,0.48305203]
[1742794896972,0.08773645,87110.0,87109.0,0.48305203]
[1742794897633,0.08024209,87110.0,87109.0,0.48305203]
[1742794897833,0.08873645,87110.0,87109.0,0.48305203]
[1742794900285,0.08024209,87110.0,87109.0,0.48305203]
[1742794901505,0.08024209,87110.0,87109.0,0.48301203]
[1742794901877,0.08024209,87110.0,87109.0,0.48297203]
[1742794903204,0.08041159,87110.0,87109.0,0.48293203]
[1742794903612,0.08888323,87110.0,87109.0,0.48293203]
[1742794903814,0.08041159,87110.0,87109.0,0.50601407]
[1742794904426,0.08041159,87110.0,87109.0,0.02308204]
[1742794904427,0.09189059,87110.0,87109.0,0.02308204]
[1742794904648,0.621385,87106.0,87105.0,0.5712]
[1742794905043,0.62985294,87106.0,87105.0,0.5712]
[1742794905673,0.30846794,87106.0,87105.0,0.58268]
[1742794906461,0.30846794,87106.0,87105.0,0.5712]
[1742794907305,0.30846794,87106.0,87105.0,0.800807]
[1742794908002,0.31046794,87106.0,87105.0,0.800807]
[1742794908158,0.30846794,87106.0,87105.0,0.800807]
[1742794908562,0.30946794,87106.0,87105.0,0.800807]
[1742794910146,0.30946794,87106.0,87105.0,0.5712]
[1742794910351,0.62605294,87106.0,87105.0,0.5712]
[1742794913486,0.38496794,87106.0,87105.0,0.5712]
[1742794913688,0.38496794,87106.0,87105.0,0.800807]
[1742794913913,0.38496794,87106.0,87105.0,0.5712]
[1742794914113,0.62605294,87106.0,87105.0,0.5712]
[1742794915147,0.62605294,87106.0,87105.0,0.7052]
[1742794915682,0.62605294,87106.0,87105.0,0.134]
[1742794915913,0.62622244,87106.0,87105.0,0.134]
[1742794922043,0.62622244,87106.0,87105.0,0.129]
[1742794924746,0.62522244,87106.0,87105.0,0.129]
[1742794925327,0.229629,87097.0,87095.0,0.02256961]
[1742794925503,0.24111,87097.0,87095.0,0.02256961]
[1742794925641,0.011481,87098.0,87096.0,0.13348]
[1742794925956,0.00696719,87097.0,87096.0,0.13348]
[1742794926161,0.011481,87100.0,87096.0,0.13348]
[1742794926343,0.00696719,87099.0,87097.0,0.229627]
[1742794926545,0.241097,87102.0,87096.0,0.363111]
[1742794926744,0.00696719,87101.0,87096.0,0.363111]
[1742794927763,0.23658719,87101.0,87096.0,0.363111]
[1742794927993,0.24806719,87101.0,87096.0,0.363111]
[1742794928537,0.24906719,87101.0,87096.0,0.363111]
[1742794929591,0.229631,87096.0,87095.0,0.02273901]
[1742794929775,0.24806233,87096.0,87095.0,0.1334894]
[1742794930711,0.00695033,87096.0,87095.0,0.1334894]
[1742794930909,0.229625,87099.0,87095.0,0.1334894]
[1742794931105,0.229625,87099.0,87095.0,0.0001694]
[1742794931306,0.00692992,87098.0,87096.0,0.13368]
[1742794931513,0.23655792,87098.0,87096.0,0.13368]
[1742794932181,0.24803892,87098.0,87096.0,0.13368]
[1742794932581,0.311481,87097.0,87096.0,0.13368]
[1742794933034,0.31841092,87097.0,87096.0,0.13368]
[1742794933791,0.541112,87096.0,87095.0,0.0001694]
[1742794934002,0.63103753,87096.0,87095.0,0.0001694]
[1742794934222,0.75061256,87096.0,87095.0,0.0001694]
[1742794934872,0.76859644,87096.0,87095.0,0.0001694]
[1742794935422,0.77259644,87096.0,87095.0,0.0001694]
[1742794936219,0.76859644,87096.0,87095.0,0.0001694]
[1742794936862,0.77259644,87096.0,87095.0,0.0001694]
[1742794937455,0.76859644,87096.0,87095.0,0.0001694]
[1742794937656,0.77759644,87096.0,87095.0,0.0001694]
[1742794937943,0.77259644,87096.0,87095.0,0.0001694]
[1742794938148,0.81809644,87096.0,87095.0,0.0001694]
[1742794938302,0.82309644,87096.0,87095.0,0.0001694]
[1742794938622,0.81809644,87096.0,87095.0,0.0001694]
[1742794939061,0.81909644,87096.0,87095.0,0.0001694]
[1742794939261,0.622429,87090.0,87089.0,0.00013736]
[1742794939410,0.32602285,87089.0,87088.0,3.6e-07]
[1742794939608,0.57239788,87089.0,87088.0,3.6e-07]
[1742794939810,0.57953519,87089.0,87088.0,3.6e-07]
[1742794940128,0.99403519,87089.0,87088.0,3.6e-07]
[1742794941101,0.99903519,87089.0,87088.0,3.6e-07]
[1742794941705,1.00403519,87089.0,87088.0,3.6e-07]
[1742794945057,1.02712013,87089.0,87088.0,3.6e-07]
[1742794948101,0.74311931,87089.0,87088.0,3.6e-07]
[1742794948362,0.43163731,87089.0,87088.0,3.6e-07]
[1742794948542,0.25826931,87089.0,87088.0,3.6e-07]
[1742794949308,0.55326931,87089.0,87088.0,3.6e-07]
[1742794949604,0.55026931,87089.0,87088.0,3.6e-07]
[1742794949833,0.55326931,87089.0,87088.0,3.6e-07]
[1742794951345,0.57125445,87089.0,87088.0,3.6e-07]
[1742794964034,0.67284434,87089.0,87088.0,3.6e-07]
[1742794964992,0.66984434,87089.0,87088.0,3.6e-07]
[1742794965494,0.71884434,87089.0,87088.0,3.6e-07]
[1742794965828,0.71684434,87089.0,87088.0,3.6e-07]
[1742794966013,0.72184434,87089.0,87088.0,3.6e-07]
[1742794966197,0.72484434,87089.0,87088.0,3.6e-07]
[1742794967146,0.74283125,87089.0,87088.0,3.6e-07]
[1742794967345,0.56625622,87089.0,87088.0,3.6e-07]
[1742794967756,0.57625622,87089.0,87088.0,3.6e-07]
[1742794967983,0.57125622,87089.0,87088.0,3.6e-07]
[1742794968361,0.57625622,87089.0,87088.0,3.6e-07]
[1742794968888,0.57125622,87089.0,87088.0,3.6e-07]
[1742794969444,0.57425622,87089.0,87088.0,3.6e-07]
[1742794971423,0.57459522,87089.0,87088.0,3.6e-07]
[1742794980709,0.03346322,87089.0,87088.0,3.6e-07]
[1742794981005,0.01547631,87089.0,87088.0,0.07650036]
[1742794981221,0.237989,87089.0,87088.0,0.07650036]
[1742794981522,0.2565603,87089.0,87088.0,0.07650036]
[1742794981718,0.2535603,87089.0,87088.0,0.07650036]
[1742794981949,0.2485603,87089.0,87088.0,0.07650036]
[1742794982067,0.2535603,87089.0,87088.0,0.07650036]
[1742794982998,0.2535603,87089.0,87088.0,3.6e-07]
[1742794985573,0.27154526,87089.0,87088.0,3.6e-07]
[1742794997262,0.70566114,87089.0,87088.0,3.6e-07]
[1742794997510,1.18357618,87089.0,87088.0,3.6e-07]
[1742794997897,1.18357618,87089.0,87063.0,0.10287032]
[1742794997898,0.541201,87064.0,87063.0,0.10287032]
[1742794998347,0.54690041,87064.0,87063.0,0.10287032]
[1742794999456,0.54690041,87064.0,87063.0,0.10327785]
[1742794999904,0.55870411,87064.0,87063.0,0.10327785]
[1742795000038,0.55970411,87064.0,87063.0,0.10327785]
[1742795000469,0.55970411,87064.0,87063.0,0.00140753]
[1742795005578,0.00560726,87064.0,87063.0,0.12687703]
[1742795007458,0.00560726,87064.0,87063.0,0.13836203]
[1742795007962,0.001,87064.0,87063.0,0.13836203]
[1742795009181,0.001,87064.0,87063.0,0.14065906]
[1742795013374,0.001,87064.0,87063.0,0.70984203]
[1742795018435,0.001,87064.0,87063.0,0.82941706]
[1742795023637,0.001,87064.0,87063.0,0.96209706]
[1742795035836,0.001,87064.0,87063.0,0.96165706]
[1742795036633,0.242201,87064.0,87063.0,0.70529703]
[1742795036834,0.00567124,87064.0,87063.0,0.70529703]
[1742795037036,0.00567124,87064.0,87063.0,0.71678203]
[1742795037037,0.001,87064.0,87063.0,0.71678203]
[1742795037238,0.00567124,87064.0,87063.0,0.71678203]
[1742795037807,0.00567124,87064.0,87063.0,0.70529703]
[1742795045607,0.00567124,87064.0,87063.0,0.93501503]
[1742795051806,0.00567124,87064.0,87063.0,0.36353503]
[1742795061511,0.00567124,87064.0,87063.0,0.37502003]
[1742795061753,0.001,87064.0,87063.0,0.37502003]
[1742795064106,0.001,87064.0,87063.0,0.36353503]
[1742795064257,0.001,87064.0,87063.0,0.13381703]
[1742795064458,0.00565764,87064.0,87063.0,0.13381703]
[1742795064702,0.001,87064.0,87063.0,0.13381703]
[1742795064921,0.00565764,87064.0,87063.0,0.13381703]
[1742795065108,0.001,87064.0,87063.0,0.13381703]
[1742795065934,0.00565764,87064.0,87063.0,0.13381703]
[1742795066283,0.001,87064.0,87063.0,0.13381703]
[1742795066690,0.00565586,87064.0,87063.0,0.13381703]
[1742795083740,0.01714086,87064.0,87063.0,0.13381703]
[1742795088598,0.00565586,87064.0,87063.0,0.22140203]
[1742795088783,0.00565586,87064.0,87063.0,0.39047393]
[1742795088925,0.001,87064.0,87063.0,0.38817706]
[1742795090354,0.541148,87084.0,87078.0,0.011483]
[1742795090561,0.00460637,87083.0,87079.0,0.13224]
[1742795091771,0.3,87082.0,87079.0,0.13224]
[1742795092195,0.00460345,87081.0,87079.0,0.13224]
[1742795094535,0.00760345,87081.0,87079.0,0.13224]
[1742795094750,0.3,87080.0,87079.0,0.13224]
[1742795094987,0.30460637,87080.0,87079.0,0.13224]
[1742795095716,0.00460637,87080.0,87079.0,0.13224]
[1742795095943,0.52967,87082.0,87079.0,0.13224]
[1742795095944,0.541153,87082.0,87079.0,0.13224]
[1742795096140,0.004,87080.0,87079.0,0.13224]
[1742795096361,0.00860637,87080.0,87079.0,0.13224]
[1742795097606,0.00760637,87080.0,87079.0,0.13224]
[1742795098089,0.00460637,87080.0,87079.0,0.13224]
[1742795098491,0.001,87080.0,87079.0,0.13224]
[1742795098717,0.00560637,87080.0,87079.0,0.13224]
[1742795098930,0.001,87080.0,87079.0,0.13224]
[1742795099247,0.004,87080.0,87079.0,0.143723]
[1742795099675,0.004,87080.0,87079.0,0.26329803]
[1742795099891,0.000339,87088.0,87087.0,0.368037]
[1742795100095,0.000339,87088.0,87087.0,1.47285203]
[1742795100713,0.000339,87088.0,87087.0,1.48163159]
[1742795101834,0.000339,87088.0,87087.0,1.48263159]
[1742795102239,0.000339,87088.0,87087.0,1.48163159]
[1742795102892,0.000339,87088.0,87087.0,1.48263159]
[1742795103325,1e-06,87089.0,87088.0,0.016482]
[1742795103457,1e-06,87089.0,87088.0,0.31545064]
[1742795103657,1e-06,87089.0,87088.0,0.75195509]
[1742795104684,0.00024239,87105.0,87104.0,0.36799]
[1742795104889,0.00024239,87105.0,87104.0,0.61976503]
[1742795105863,0.00028313,87105.0,87104.0,1.03356503]
[1742795106118,0.00028313,87105.0,87104.0,1.03556503]
[1742795106923,0.00028313,87105.0,87104.0,1.05913625]
[1742795107302,0.00028313,87105.0,87104.0,1.06313625]
[1742795108401,1.3e-07,87105.0,87104.0,1.06313625]
[1742795109389,6.3e-07,87106.0,87105.0,0.01148]
[1742795109565,7.3e-07,87111.0,87110.0,0.41601385]
[1742795109703,7.3e-07,87111.0,87110.0,0.53558888]
[1742795110273,7.3e-07,87111.0,87110.0,0.54018788]
[1742795110573,7.3e-07,87111.0,87110.0,0.54881236]
[1742795110974,7.3e-07,87111.0,87110.0,0.54381236]
[1742795111119,7.3e-07,87111.0,87110.0,0.50427151]
[1742795111318,7.3e-07,87111.0,87110.0,0.50927151]
[1742795111723,0.00100073,87111.0,87110.0,0.51427151]
[1742795112004,0.00100073,87111.0,87110.0,1.08043151]
[1742795112181,0.00100073,87111.0,87110.0,1.08543151]
[1742795112400,0.00200073,87111.0,87110.0,1.08543151]
[1742795114452,0.00200073,87111.0,87110.0,1.49923151]
[1742795115263,0.00200073,87111.0,87110.0,0.94180803]
[1742795115473,0.00200073,87111.0,87110.0,1.07392803]
[1742795116270,0.00200073,87111.0,87110.0,0.251073]
[1742795116469,0.00200073,87111.0,87110.0,0.949313]
[1742795116470,0.00100073,87111.0,87110.0,0.949313]
[1742795116789,0.58827173,87111.0,87110.0,0.007]
[1742795117328,0.58727173,87111.0,87110.0,0.002]
[1742795117517,0.60525237,87111.0,87110.0,0.002]
[1742795117739,0.60525237,87111.0,87110.0,0.006]
[1742795117869,0.60525237,87111.0,87101.0,0.13212]
[1742795117870,0.241095,87102.0,87101.0,0.13212]
[1742795118099,0.541095,87102.0,87101.0,0.13212]
[1742795118343,0.541107,87098.0,87097.0,0.57112]
[1742795118484,0.3,87098.0,87097.0,0.70324]
[1742795118968,0.3,87098.0,87097.0,0.714721]
[1742795119142,0.3,87098.0,87097.0,0.70324]
[1742795119486,0.311481,87098.0,87097.0,0.70324]
[1742795121213,0.311481,87098.0,87097.0,0.70524]
[1742795122405,0.311481,87098.0,87097.0,0.71600404]
[1742795123288,0.311481,87098.0,87097.0,0.7392723]
[1742795124472,0.3,87098.0,87097.0,0.7392723]
[1742795125813,0.3,87098.0,87097.0,0.7507533]
[1742795127275,0.3,87098.0,87097.0,0.7510923]
[1742795127750,0.3,87098.0,87097.0,0.7396113]
[1742795128318,0.3,87098.0,87097.0,0.71634304]
[1742795128518,0.3,87098.0,87097.0,0.705579]
[1742795130172,0.3,87098.0,87097.0,0.71634539]
[1742795134270,0.3,87098.0,87097.0,0.705579]
[1742795135416,0.3,87098.0,87097.0,0.71634554]
[1742795136807,0.311481,87098.0,87097.0,0.71634554]
[1742795137216,0.389281,87098.0,87097.0,0.58422554]
[1742795138323,0.389281,87098.0,87097.0,0.573459]
[1742795138910,0.391281,87098.0,87097.0,0.573459]
[1742795139377,0.389281,87098.0,87097.0,0.571459]
[1742795139788,0.391281,87098.0,87097.0,0.571459]
[1742795140394,0.40926405,87098.0,87097.0,0.571459]
[1742795141213,0.40926405,87098.0,87097.0,0.000339]
[1742795150544,0.52883908,87098.0,87097.0,0.000339]
[1742795150768,0.99259688,87098.0,87097.0,1e-06]
[1742795151676,0.99759688,87098.0,87097.0,1e-06]
[1742795151872,1.02038316,87098.0,87097.0,1e-06]
[1742795152101,1.01538316,87098.0,87097.0,1e-06]
[1742795152415,1.01338316,87098.0,87097.0,1e-06]
[1742795152621,1.01838316,87098.0,87097.0,1e-06]
[1742795153179,0.619554,87081.0,87080.0,0.0003392]
[1742795153376,0.73912903,87081.0,87080.0,0.00074673]
[1742795154038,0.80591663,87081.0,87080.0,0.00074673]
[1742795154769,0.80691663,87081.0,87080.0,0.00074673]
[1742795154949,0.81091663,87081.0,87080.0,0.00074673]
[1742795155508,0.82545748,87081.0,87080.0,0.00074673]
[1742795157954,0.82445748,87081.0,87080.0,0.00074673]
[1742795158425,0.82245748,87081.0,87080.0,0.00074673]
[1742795158621,0.82745748,87081.0,87080.0,0.00074673]
[1742795164075,0.68571663,87081.0,87080.0,0.00074673]
[1742795164280,0.007,87081.0,87080.0,0.00074673]
[1742795164485,0.007,87081.0,87080.0,0.24190273]
[1742795164687,0.007,87081.0,87080.0,0.44237776]
[1742795165096,0.007,87081.0,87080.0,0.48857776]
[1742795165308,0.229653,87088.0,87081.0,0.229671]
[1742795165509,0.24114,87086.0,87082.0,0.13212]
[1742795165762,0.229655,87088.0,87082.0,0.361786]
[1742795165961,0.011482,87089.0,87082.0,0.13212]
[1742795166118,0.011482,87089.0,87082.0,0.143603]
[1742795166320,0.3,87090.0,87088.0,0.229652]
[1742795166521,0.3,87090.0,87086.0,0.241138]
[1742795167262,0.24113,87090.0,87083.0,0.229663]
[1742795167609,0.01798485,87092.0,87084.0,0.011483]
[1742795168111,0.3,87091.0,87082.0,0.143603]
[1742795168318,0.011482,87087.0,87082.0,0.13212]
[1742795168748,0.3,87091.0,87084.0,0.011483]
[1742795168953,0.3,87091.0,87087.0,0.229655]
[1742795169276,0.229653,87088.0,87083.0,0.011483]
[1742795169693,0.3,87090.0,87085.0,0.011483]
[1742795169897,0.011482,87089.0,87083.0,0.011483]
[1742795170718,0.241138,87087.0,87082.0,0.374269]
[1742795171115,0.241138,87087.0,87082.0,0.373269]
[1742795171845,0.01798485,87092.0,87083.0,0.011483]
[1742795171998,0.011481,87100.0,87092.0,0.011482]
[1742795172193,0.3,87099.0,87093.0,0.229638]
[1742795172406,0.3,87099.0,87094.0,0.13212]
[1742795172745,0.529625,87099.0,87094.0,0.13212]
[1742795172886,0.529634,87095.0,87094.0,0.13212]
[1742795173093,0.541115,87095.0,87094.0,0.13212]
[1742795174933,0.541129,87090.0,87089.0,0.57144]
[1742795175143,0.541129,87090.0,87089.0,0.70352]
[1742795176116,0.541129,87090.0,87089.0,0.70552]
[1742795177973,0.541129,87090.0,87089.0,0.002]
[1742795180261,0.56258971,87090.0,87089.0,0.002]
[1742795181724,0.541129,87090.0,87089.0,0.002]
[1742795183819,1.20931991,87090.0,87089.0,0.002]
[1742795184201,1.08974488,87090.0,87089.0,0.002]
[1742795184490,1.09821648,87090.0,87089.0,0.002]
[1742795184899,0.541154,87081.0,87080.0,0.00074673]
[1742795185193,0.66072903,87081.0,87080.0,0.00074673]
[1742795186832,0.67871667,87081.0,87080.0,0.00074673]
[1742795187040,0.68071667,87081.0,87080.0,0.00074673]
[1742795190580,0.56114164,87081.0,87080.0,0.00074673]
[1742795193560,0.543154,87081.0,87080.0,0.00074673]
[1742795193887,0.002,87081.0,87080.0,0.07854673]
[1742795195066,0.013483,87081.0,87080.0,0.07854673]
[1742795196059,0.013483,87081.0,87080.0,0.00074673]
[1742795196646,0.03146976,87081.0,87080.0,0.00074673]
[1742795197087,0.02796976,87081.0,87080.0,0.00074673]
[1742795202047,0.02946976,87081.0,87080.0,0.00074673]
[1742795203487,0.01798676,87081.0,87080.0,0.07694673]
[1742795205743,0.02946976,87081.0,87080.0,0.07694673]
[1742795209601,0.02946976,87081.0,87080.0,0.00074673]
[1742795211193,0.02980896,87081.0,87080.0,0.00074673]
[1742795211427,0.03211129,87081.0,87080.0,0.00074673]
[1742795212174,0.01412453,87081.0,87080.0,0.00074673]
[1742795212386,0.0003392,87081.0,87080.0,0.00074673]
[1742795212587,0.0118222,87081.0,87080.0,0.00074673]
[1742795213066,0.0138222,87081.0,87080.0,0.00074673]
[1742795213967,0.0178222,87081.0,87080.0,0.00074673]
[1742795214174,0.02012453,87081.0,87080.0,0.00074673]
[1742795214396,0.0178222,87081.0,87080.0,0.00074673]
[1742795215335,0.03580978,87081.0,87080.0,0.00074673]
[1742795226462,0.45538481,87081.0,87080.0,0.00074673]
[1742795229642,0.33580978,87081.0,87080.0,0.00074673]
[1742795230981,0.32432678,87081.0,87080.0,0.00074673]
[1742795231522,0.33580978,87081.0,87080.0,0.00074673]
[1742795232279,0.32980978,87081.0,87080.0,0.00074673]
[1742795232684,0.33080978,87081.0,87080.0,0.00074673]
[1742795232865,0.32980978,87081.0,87080.0,0.00074673]
[1742795233066,0.3118222,87081.0,87080.0,0.00074673]
[1742795233266,0.3128222,87081.0,87080.0,0.00074673]
[1742795234348,0.3168222,87081.0,87080.0,0.00074673]
[1742795234897,0.3128222,87081.0,87080.0,0.00074673]
[1742795235096,0.3158222,87081.0,87080.0,0.00074673]
[1742795236108,0.3338081,87081.0,87080.0,0.00074673]
[1742795247579,0.3338081,87081.0,87080.0,0.13274673]
[1742795248776,0.3223251,87081.0,87080.0,0.14422973]
[1742795248991,0.0043392,87081.0,87080.0,0.57277776]
[1742795249200,0.0043392,87081.0,87080.0,0.62127776]
[1742795249556,0.0033392,87081.0,87080.0,0.62127776]
[1742795249959,0.0043392,87081.0,87080.0,0.62127776]
[1742795250157,0.0033392,87081.0,87080.0,0.49021973]
[1742795250360,0.0003392,87081.0,87080.0,0.49021973]
[1742795250563,0.0003392,87081.0,87080.0,0.04924673]
[1742795250908,0.0003392,87081.0,87080.0,0.13274673]
[1742795250909,0.0118222,87081.0,87080.0,0.13274673]
[1742795251131,0.3118222,87081.0,87080.0,0.13274673]
[1742795251450,0.3148222,87081.0,87080.0,0.13274673]
[1742795251862,0.32980853,87081.0,87080.0,0.13274673]
[1742795252488,0.33180853,87081.0,87080.0,0.13274673]
[1742795254134,0.02032553,87081.0,87080.0,0.13274673]
[1742795254334,0.02032553,87081.0,87080.0,0.00074673]
[1742795254335,0.0023392,87081.0,87080.0,0.00074673]
[1742795254581,0.0023392,87081.0,87080.0,0.21200673]
[1742795255339,0.3138222,87081.0,87080.0,0.21200673]
[1742795257209,0.33180832,87081.0,87080.0,0.21200673]
[1742795260332,0.33180832,87081.0,87080.0,0.13270673]
[1742795261122,0.33180832,87081.0,87080.0,0.00074673]
[1742795269415,0.35333979,87081.0,87080.0,0.00074673]
[1742795270401,0.33180832,87081.0,87080.0,0.00074673]
[1742795271733,0.3138222,87081.0,87080.0,0.00074673]
[1742795273049,0.3118222,87081.0,87080.0,0.00074673]
[1742795273236,0.3158222,87081.0,87080.0,0.00074673]
[1742795274267,0.3168222,87081.0,87080.0,0.00074673]
[1742795275137,0.33480894,87081.0,87080.0,0.00074673]
[1742795277436,0.35633465,87081.0,87080.0,0.00074673]
[1742795279199,0.33480894,87081.0,87080.0,0.00074673]
[1742795281360,0.35633745,87081.0,87080.0,0.00074673]
[1742795281562,0.47591248,87081.0,87080.0,0.00074673]
[1742795281793,0.49045333,87081.0,87080.0,0.00074673]
[1742795282167,0.47246659,87081.0,87080.0,0.00074673]
[1742795283064,0.47146659,87081.0,87080.0,0.00074673]
[1742795283270,0.47346659,87081.0,87080.0,0.00074673]
[1742795283493,0.46946659,87081.0,87080.0,0.00074673]
[1742795283699,0.47346659,87081.0,87080.0,0.00074673]
[1742795285152,0.49145534,87081.0,87080.0,0.00074673]
[1742795286204,0.46992683,87081.0,87080.0,0.00074673]
[1742795288126,0.46992683,87081.0,87080.0,7.3e-07]
[1742795289558,0.46792683,87081.0,87080.0,7.3e-07]
[1742795289730,0.47092683,87081.0,87080.0,7.3e-07]
[1742795290392,0.46692683,87081.0,87080.0,7.3e-07]
[1742795290865,0.47192683,87081.0,87080.0,7.3e-07]
[1742795292186,0.59150186,87081.0,87080.0,7.3e-07]
[1742795292321,0.47192683,87081.0,87080.0,7.3e-07]
[1742795293328,0.88642683,87081.0,87080.0,7.3e-07]
[1742795295399,0.88642683,87081.0,87080.0,0.00017023]
[1742795303859,0.89142683,87081.0,87080.0,2.3e-07]
[1742795304039,0.99301311,87081.0,87080.0,2.3e-07]
[1742795304246,0.95463808,87081.0,87080.0,2.3e-07]
[1742795304897,0.95163808,87081.0,87080.0,2.3e-07]
[1742795305099,0.94663808,87081.0,87080.0,2.3e-07]
[1742795305415,0.95663808,87081.0,87080.0,2.3e-07]
[1742795307108,0.97462843,87081.0,87080.0,2.3e-07]
[1742795308059,1.10654843,87081.0,87080.0,2.3e-07]
[1742795309494,1.22612346,87081.0,87080.0,2.3e-07]
[1742795309969,1.10654843,87081.0,87080.0,2.3e-07]
[1742795310556,0.88842843,87081.0,87080.0,2.3e-07]
[1742795312582,0.88842843,87081.0,87080.0,2.3e-07]
[1742795314746,0.87388758,87081.0,87080.0,2.3e-07]
[1742795314894,0.88842843,87081.0,87080.0,2.3e-07]
[1742795319312,0.87043808,87081.0,87080.0,2.3e-07]
[1742795319944,0.45593808,87081.0,87080.0,2.3e-07]
[1742795322222,0.47392685,87081.0,87080.0,2.3e-07]
[1742795325714,0.88842685,87081.0,87080.0,2.3e-07]
[1742795326444,0.87043808,87081.0,87080.0,2.3e-07]
[1742795329699,0.88842796,87081.0,87080.0,2.3e-07]
[1742795330262,0.89342796,87081.0,87080.0,2.3e-07]
[1742795336544,0.90501443,87081.0,87080.0,2.3e-07]
[1742795341469,0.90001443,87081.0,87080.0,2.3e-07]
[1742795342311,0.70001443,87081.0,87080.0,2.3e-07]
[1742795343465,0.59967523,87081.0,87080.0,2.3e-07]
[1742795343890,0.58513438,87081.0,87080.0,2.3e-07]
[1742795344061,0.58168535,87081.0,87080.0,2.3e-07]
[1742795344265,0.88168535,87081.0,87080.0,2.3e-07]
[1742795346986,0.8996744,87081.0,87080.0,2.3e-07]
[1742795350202,0.58513355,87081.0,87080.0,0.12570023]
[1742795350411,0.88513355,87081.0,87080.0,0.12570023]
[1742795351097,0.88013355,87081.0,87080.0,0.12570023]
[1742795351300,0.87513355,87081.0,87080.0,0.12570023]
[1742795351497,0.88013355,87081.0,87080.0,0.12570023]
[1742795351824,0.87513355,87081.0,87080.0,0.12570023]
[1742795352204,0.87913355,87081.0,87080.0,0.12570023]
[1742795352710,0.88413355,87081.0,87080.0,0.12570023]
[1742795353135,0.87913355,87081.0,87080.0,0.12570023]
[1742795353618,0.88413355,87081.0,87080.0,0.12570023]
[1742795354022,0.88447255,87081.0,87080.0,0.12570023]
[1742795355125,0.46997255,87081.0,87080.0,0.12570023]
[1742795355983,0.46997255,87081.0,87080.0,2.3e-07]
[1742795355984,0.4845134,87081.0,87080.0,2.3e-07]
[1742795358568,0.46652435,87081.0,87080.0,2.3e-07]
[1742795360181,0.46652435,87081.0,87063.0,0.0001695]
[1742795360182,0.541201,87064.0,87063.0,0.0001695]
[1742795360323,0.67531688,87064.0,87063.0,0.00029185]
[1742795361447,0.69830767,87064.0,87063.0,0.00029185]
[1742795362562,0.70130767,87064.0,87063.0,0.00029185]
[1742795363874,1.12424584,87064.0,87063.0,0.00029185]
[1742795364580,0.80126682,87064.0,87063.0,0.00029185]
[1742795364822,1.10126682,87064.0,87063.0,0.12519185]
[1742795365033,0.963701,87064.0,87063.0,0.12519185]
[1742795368162,0.68169103,87064.0,87063.0,0.12519185]
[1742795368661,0.98169103,87064.0,87063.0,0.12519185]
[1742795369689,0.56719103,87064.0,87063.0,0.12519185]
[1742795378859,0.56719103,87064.0,87063.0,0.02519185]
[1742795381781,0.56419103,87064.0,87063.0,0.02519185]
[1742795382014,0.56619103,87064.0,87063.0,0.02519185]
[1742795382236,0.56119103,87064.0,87063.0,0.02519185]
[1742795382513,0.56519103,87064.0,87063.0,0.02519185]
[1742795384828,0.32399003,87064.0,87063.0,0.02519185]
[1742795385071,0.306,87064.0,87063.0,0.02519185]
[1742795385422,0.317485,87064.0,87063.0,0.02519185]
[1742795387979,0.33547422,87064.0,87063.0,0.02519185]
[1742795389211,0.33547422,87064.0,87063.0,0.02536145]
[1742795389409,0.33581342,87064.0,87063.0,0.02536145]
[1742795394879,0.32432842,87064.0,87063.0,0.25507945]
[1742795395114,0.3063392,87064.0,87063.0,0.25507945]
[1742795396269,0.3003392,87064.0,87063.0,0.25507945]
[1742795396643,0.3003392,87064.0,87063.0,0.25607945]
[1742795397041,0.3013392,87064.0,87063.0,0.25607945]
[1742795400061,0.3013392,87064.0,87063.0,0.02636145]
[1742795400234,0.5310552,87064.0,87063.0,0.02636145]
[1742795402388,0.5425402,87064.0,87063.0,0.02636145]
[1742795405684,0.3013392,87064.0,87063.0,0.02636145]
[1742795406532,0.3013392,87064.0,87063.0,0.03784645]
[1742795406942,0.3013392,87064.0,87063.0,0.11584645]
[1742795408004,0.3013392,87064.0,87063.0,0.10436145]
[1742795412047,0.5425402,87064.0,87063.0,0.15808145]
[1742795412255,0.5310552,87064.0,87063.0,0.15808145]
[1742795412483,0.5425402,87064.0,87063.0,0.15808145]
[1742795419397,0.54234469,87064.0,87063.0,0.15808145]
[1742795423234,0.54234469,87064.0,87063.0,0.02636145]
[1742795423438,0.54234469,87064.0,87063.0,0.0011696]
[1742795424438,0.54234469,87064.0,87063.0,0.0001696]
[1742795425821,0.54534469,87064.0,87063.0,0.0001696]
[1742795431773,0.5555131,87064.0,87063.0,0.0001696]
[1742795467925,0.55219735,87064.0,87063.0,0.0001696]
[1742795476504,0.54994857,87064.0,87063.0,0.0001696]
[1742795478709,0.54534469,87064.0,87063.0,0.0001696]
[1742795483537,0.74261972,87064.0,87063.0,0.0001696]
[1742795483759,0.80626057,87064.0,87063.0,6e-07]
[1742795483968,1.22076057,87064.0,87063.0,6e-07]
[1742795484196,1.22076057,87064.0,87057.0,6e-07]
[1742795484197,0.618917,87058.0,87057.0,6e-07]
[1742795484405,0.76155641,87058.0,87057.0,6e-07]
[1742795485531,0.76355641,87058.0,87057.0,6e-07]
[1742795486007,0.76755641,87058.0,87057.0,6e-07]
[1742795486670,0.76355641,87058.0,87057.0,6e-07]
[1742795486847,0.78654847,87058.0,87057.0,6e-07]
[1742795487608,0.80975384,87058.0,87057.0,6e-07]
[1742795488260,0.80775384,87058.0,87057.0,6e-07]
[1742795488869,0.80975384,87058.0,87057.0,6e-07]
[1742795489812,1.22425384,87058.0,87057.0,6e-07]
[1742795490248,1.22425384,87058.0,87050.0,0.0001695]
[1742795490249,0.63347785,87051.0,87050.0,1e-07]
[1742795490518,0.80215288,87051.0,87050.0,1e-07]
[1742795492570,0.80715288,87051.0,87050.0,1e-07]
[1742795493160,0.80915288,87051.0,87050.0,1e-07]
[1742795493996,0.68957785,87051.0,87050.0,1e-07]
[1742795494116,1.10407785,87051.0,87050.0,1e-07]
[1742795494327,1.22365288,87051.0,87050.0,1e-07]
[1742795496192,1.22899208,87051.0,87050.0,1e-07]
[1742795498002,1.22199208,87051.0,87050.0,1e-07]